bitfinex-derivatives/quotes_BTCF0:USTF0_20251108
["timestamp","ask_amount","ask_price","bid_price","bid_amount"]
[1762630553618,0.38714377,101890.0,101880.0,1.05846486]
[1762630554725,0.38614377,101890.0,101880.0,1.05846486]
[1762630555023,0.38614377,101890.0,101880.0,1.06046486]
[1762630555232,0.33354807,101890.0,101880.0,1.06046486]
[1762630557829,0.21730807,101890.0,101880.0,1.06046486]
[1762630558122,0.08878,101890.0,101880.0,1.23523935]
[1762630558320,0.13928,101890.0,101880.0,1.23523935]
[1762630559822,0.13928,101890.0,101880.0,1.20876486]
[1762630560330,0.13928,101890.0,101880.0,1.09051932]
[1762630567133,0.13928,101890.0,101880.0,0.97223332]
[1762630567334,0.13928,101890.0,101880.0,1.09051932]
[1762630568437,0.13928,101890.0,101880.0,0.36891932]
[1762630568628,0.13928,101890.0,101880.0,1.09051932]
[1762630576939,0.13928,101890.0,101880.0,0.36891932]
[1762630577141,0.13928,101890.0,101880.0,1.09051932]
[1762630577442,0.13928,101890.0,101880.0,1.11699381]
[1762630577948,0.13928,101890.0,101880.0,0.96869381]
[1762630579333,0.03551,101890.0,101880.0,1.08697981]
[1762630579735,0.08878,101890.0,101880.0,1.08697981]
[1762630580041,0.18298054,101900.0,101890.0,0.0981766]
[1762630580239,0.18298054,101900.0,101890.0,0.5772626]
[1762630580437,0.32958707,101900.0,101890.0,0.5772626]
[1762630580834,0.29453653,101900.0,101890.0,0.5772626]
[1762630581036,0.29453653,101900.0,101890.0,0.60373709]
[1762630581538,0.14793,101900.0,101890.0,0.60373709]
[1762630581739,0.04416,101900.0,101890.0,0.60373709]
[1762630581929,0.09743,101900.0,101890.0,0.60473709]
[1762630582127,0.14793,101900.0,101890.0,0.60473709]
[1762630582437,0.04416,101900.0,101890.0,0.60473709]
[1762630582643,0.09387,101910.0,101900.0,0.098167]
[1762630582941,0.09387,101910.0,101900.0,0.60372749]
[1762630583143,0.14437,101910.0,101900.0,0.60372749]
[1762630583540,0.0406,101910.0,101900.0,0.72201349]
[1762630584041,0.0406,101910.0,101900.0,0.75723713]
[1762630584239,0.09387,101920.0,101910.0,0.3347294]
[1762630584450,0.09387,101920.0,101910.0,0.6955294]
[1762630584638,0.14437,101920.0,101910.0,0.6955294]
[1762630585145,0.14437,101920.0,101910.0,0.72197708]
[1762630585342,0.14437,101920.0,101910.0,0.6975294]
[1762630585944,0.14437,101920.0,101910.0,0.5792434]
[1762630586250,0.14437,101920.0,101910.0,0.5822434]
[1762630586945,0.14437,101920.0,101910.0,0.7005294]
[1762630587738,0.0406,101920.0,101910.0,0.7005294]
[1762630588146,0.09133,101920.0,101910.0,0.7005294]
[1762630588537,0.14374,101920.0,101910.0,0.7005294]
[1762630589141,0.14374,101920.0,101910.0,0.5822434]
[1762630591749,0.14374,101920.0,101910.0,0.66040644]
[1762630593143,0.14374,101920.0,101910.0,0.77869244]
[1762630594245,0.14374,101920.0,101910.0,0.5822434]
[1762630595248,0.14374,101920.0,101910.0,0.5802434]
[1762630595444,0.14374,101920.0,101910.0,0.5792434]
[1762630600440,0.14374,101920.0,101910.0,0.7275434]
[1762630601445,0.09133,101920.0,101910.0,0.8458294]
[1762630601754,0.14374,101920.0,101910.0,0.8458294]
[1762630603353,0.0406,101920.0,101910.0,0.8458294]
[1762630603657,0.09133,101920.0,101910.0,0.8458294]
[1762630604454,0.07771,101930.0,101910.0,0.8458294]
[1762630604755,0.27425912,101930.0,101920.0,0.536182]
[1762630606757,0.17672912,101930.0,101920.0,0.536182]
[1762630607056,0.27425912,101930.0,101920.0,0.536182]
[1762630609254,0.27425912,101930.0,101920.0,0.684482]
[1762630610848,0.27425912,101930.0,101920.0,0.364734]
[1762630612057,0.27425912,101930.0,101920.0,0.725534]
[1762630612457,0.30930966,101930.0,101920.0,0.725534]
[1762630612960,0.27425912,101930.0,101920.0,0.725534]
[1762630613355,0.30930966,101930.0,101920.0,0.725534]
[1762630613752,0.27425912,101930.0,101920.0,0.725534]
[1762630613952,0.27425912,101930.0,101920.0,0.75198168]
[1762630614253,0.27425912,101930.0,101920.0,0.725534]
[1762630614658,0.27425912,101930.0,101920.0,0.75198168]
[1762630617358,0.27425912,101930.0,101920.0,0.725534]
[1762630620858,0.63505912,101930.0,101920.0,0.1483]
[1762630621062,0.13943,101920.0,101910.0,0.75198498]
[1762630622355,0.13943,101920.0,101910.0,0.75293699]
[1762630622554,0.13943,101920.0,101910.0,0.39214329]
[1762630622754,0.22707624,101920.0,101910.0,0.36569561]
[1762630622963,0.22707624,101920.0,101910.0,0.36669561]
[1762630623261,0.22707624,101920.0,101910.0,0.26853801]
[1762630623458,0.17448054,101920.0,101910.0,0.36669561]
[1762630623966,0.17448054,101920.0,101910.0,0.36569561]
[1762630624156,0.17448054,101920.0,101910.0,0.36469561]
[1762630624851,0.32201986,101920.0,101910.0,0.11823801]
[1762630625058,0.37461556,101920.0,101910.0,0.11823801]
[1762630625265,0.73541556,101920.0,101910.0,0.11823801]
[1762630626167,0.68281986,101920.0,101910.0,0.11823801]
[1762630626857,0.73541556,101920.0,101910.0,0.11823801]
[1762630627165,0.68281986,101920.0,101910.0,0.11823801]
[1762630627864,0.32201986,101920.0,101910.0,0.21639561]
[1762630630369,0.32201986,101920.0,101910.0,0.21739561]
[1762630630663,0.68281986,101920.0,101910.0,0.11923801]
[1762630630864,0.68281986,101920.0,101910.0,0.12023801]
[1762630631167,0.32201986,101920.0,101910.0,0.21839561]
[1762630631467,0.32201986,101920.0,101910.0,0.21739561]
[1762630632269,0.32201986,101920.0,101910.0,0.21639561]
[1762630632767,0.32201986,101920.0,101910.0,0.57719561]
[1762630633068,0.32201986,101920.0,101910.0,0.57919561]
[1762630635969,0.32201986,101920.0,101910.0,0.21839561]
[1762630637871,0.68281986,101920.0,101910.0,0.21839561]
[1762630639370,0.32201986,101920.0,101910.0,0.21839561]
[1762630641671,0.32201986,101920.0,101910.0,0.002]
[1762630641970,0.32201986,101920.0,101910.0,0.21839561]
[1762630642270,0.68281986,101920.0,101910.0,0.21839561]
[1762630643070,0.68281986,101920.0,101910.0,0.21639561]
[1762630643268,0.73541556,101920.0,101910.0,0.21639561]
[1762630643966,0.73541556,101920.0,101910.0,0.11823801]
[1762630644875,0.73541556,101920.0,101910.0,0.21639561]
[1762630645171,0.32201986,101920.0,101910.0,0.21639561]
[1762630645474,0.37461556,101920.0,101910.0,0.21639561]
[1762630647258,0.32201986,101920.0,101910.0,0.33463362]
[1762630647470,0.17448054,101920.0,101910.0,0.69543362]
[1762630647775,0.17448054,101920.0,101910.0,0.33463362]
[1762630647776,0.13943,101920.0,101910.0,0.33463362]
[1762630647979,0.13943,101920.0,101910.0,1.08267877]
[1762630648973,0.13943,101920.0,101910.0,1.08367877]
[1762630649368,0.03239,101920.0,101910.0,1.11890241]
[1762630649969,0.03239,101920.0,101910.0,1.51252241]
[1762630650770,0.03239,101920.0,101910.0,1.26820241]
[1762630650977,0.03239,101920.0,101910.0,1.51352241]
[1762630652076,0.03239,101920.0,101910.0,1.26820241]
[1762630653167,0.12684,101920.0,101910.0,1.26820241]
[1762630656378,0.12684,101920.0,101910.0,1.78273877]
[1762630656580,0.03239,101920.0,101910.0,1.81796241]
[1762630656770,0.12457,101930.0,101910.0,1.91612001]
[1762630656966,0.12457,101930.0,101920.0,0.81366203]
[1762630657272,0.03012,101930.0,101920.0,0.84010718]
[1762630657980,0.03012,101930.0,101920.0,1.08538718]
[1762630658474,0.03012,101930.0,101920.0,0.84010718]
[1762630658979,0.03012,101930.0,101920.0,1.08537245]
[1762630659280,0.03012,101930.0,101920.0,0.98839245]
[1762630660178,0.07804,101940.0,101930.0,0.0653827]
[1762630660371,0.12457,101940.0,101930.0,0.81095872]
[1762630675585,0.12457,101940.0,101930.0,1.17175872]
[1762630676181,0.12457,101940.0,101930.0,1.19818914]
[1762630677987,0.12457,101940.0,101930.0,1.23341278]
[1762630678188,0.12457,101940.0,101930.0,1.23342765]
[1762630679586,0.03012,101940.0,101930.0,1.23342765]
[1762630679883,0.07887,101950.0,101930.0,1.62340644]
[1762630680088,0.13063,101950.0,101940.0,0.4684994]
[1762630681279,0.13063,101950.0,101940.0,0.33460472]
[1762630682384,0.13163,101950.0,101940.0,0.33460472]
[1762630682588,0.13163,101950.0,101940.0,0.48290472]
[1762630682887,0.13363,101950.0,101940.0,0.48290472]
[1762630684389,0.13363,101950.0,101940.0,0.36457658]
[1762630686292,0.13363,101950.0,101940.0,0.48272446]
[1762630695195,0.13363,101950.0,101940.0,0.84352446]
[1762630696290,0.13363,101950.0,101940.0,0.8787481]
[1762630697886,0.13363,101950.0,101940.0,0.48272446]
[1762630698091,0.13363,101950.0,101940.0,0.84352446]
[1762630704303,0.13363,101950.0,101940.0,0.8787481]
[1762630704604,0.13363,101950.0,101940.0,0.76060022]
[1762630704803,0.13363,101950.0,101940.0,0.8787481]
[1762630706701,0.13363,101950.0,101940.0,0.76060022]
[1762630707005,0.13363,101950.0,101940.0,0.61230022]
[1762630707398,0.13363,101950.0,101940.0,0.7304481]
[1762630713912,0.13363,101950.0,101940.0,0.61230022]
[1762630716911,0.13363,101950.0,101940.0,0.7304481]
[1762630719206,0.03312,101950.0,101940.0,0.7304481]
[1762630719514,0.08534,101950.0,101940.0,0.78339417]
[1762630720011,0.08534,101950.0,101940.0,0.74817053]
[1762630720209,0.08534,101950.0,101940.0,0.78348669]
[1762630720608,0.03312,101950.0,101940.0,0.78348669]
[1762630720818,0.08534,101950.0,101940.0,0.78348669]
[1762630722214,0.03312,101950.0,101940.0,0.78348669]
[1762630722414,0.03312,101950.0,101940.0,1.33304669]
[1762630725515,0.08534,101950.0,101940.0,1.33304669]
[1762630726617,0.08534,101950.0,101940.0,1.48134669]
[1762630726917,0.08534,101950.0,101940.0,1.12054669]
[1762630727117,0.08534,101950.0,101940.0,1.84214669]
[1762630733320,0.13385,101950.0,101940.0,1.84214669]
[1762630742829,0.13385,101950.0,101940.0,1.05629093]
[1762630743036,0.13385,101950.0,101940.0,0.97592722]
[1762630743329,0.13385,101950.0,101940.0,1.33672722]
[1762630745226,0.13385,101950.0,101940.0,1.4548751]
[1762630745427,0.13385,101950.0,101940.0,1.42840062]
[1762630746421,0.13385,101950.0,101940.0,1.42838502]
[1762630749626,0.13385,101950.0,101940.0,0.51802502]
[1762630749829,0.13385,101950.0,101940.0,0.87882502]
[1762630750018,0.13385,101950.0,101940.0,0.51802502]
[1762630750223,0.13385,101950.0,101940.0,0.87882502]
[1762630750733,0.13385,101950.0,101940.0,0.51802502]
[1762630751134,0.13385,101950.0,101940.0,0.54451062]
[1762630751935,0.13385,101950.0,101940.0,0.51802502]
[1762630753937,0.13385,101950.0,101940.0,0.87882502]
[1762630758624,0.13385,101950.0,101940.0,0.93177109]
[1762630759239,0.08534,101950.0,101940.0,1.04991117]
[1762630759544,0.07518,101950.0,101940.0,1.04991117]
[1762630759726,0.11709,101950.0,101940.0,1.04991117]
[1762630760942,0.07518,101950.0,101940.0,1.04991117]
[1762630761142,0.11709,101950.0,101940.0,1.04991117]
[1762630761337,0.07518,101950.0,101940.0,1.04991117]
[1762630762332,0.003,101950.0,101940.0,1.01459501]
[1762630762637,0.003,101950.0,101940.0,1.03225855]
[1762630763238,0.003,101950.0,101940.0,0.96164894]
[1762630763435,0.02734,101950.0,101940.0,1.01460391]
[1762630766444,0.003,101950.0,101940.0,1.01460391]
[1762630766936,0.003,101950.0,101940.0,0.66018367]
[1762630767136,0.003,101950.0,101940.0,0.72536878]
[1762630767640,0.003,101950.0,101940.0,0.67783831]
[1762630767840,0.07102,101960.0,101950.0,0.0981192]
[1762630768041,0.07102,101960.0,101950.0,0.51184377]
[1762630768238,0.07102,101960.0,101950.0,0.78339995]
[1762630768747,0.07102,101960.0,101950.0,1.33291995]
[1762630769043,0.11101,101960.0,101950.0,1.33291995]
[1762630770242,0.11101,101960.0,101950.0,1.33591995]
[1762630771035,0.03008,101960.0,101950.0,1.33591995]
[1762630771840,0.07102,101960.0,101950.0,1.33591995]
[1762630772038,0.03008,101960.0,101950.0,1.45406003]
[1762630772241,0.03008,101960.0,101950.0,1.40113546]
[1762630772436,0.03008,101960.0,101950.0,1.41878401]
[1762630772839,0.11101,101970.0,101950.0,1.41878401]
[1762630773046,0.11101,101970.0,101960.0,0.72944683]
[1762630773244,0.11101,101970.0,101960.0,0.61130675]
[1762630773545,0.03008,101970.0,101960.0,0.72944683]
[1762630773742,0.1107,101980.0,101960.0,0.87774683]
[1762630774043,0.4715,101980.0,101970.0,0.33438006]
[1762630775844,0.4715,101980.0,101970.0,0.21623998]
[1762630776336,0.4735,101980.0,101970.0,0.21623998]
[1762630778647,0.4735,101980.0,101970.0,0.33438006]
[1762630779447,0.4735,101980.0,101970.0,0.48268006]
[1762630780150,0.4735,101980.0,101970.0,0.36453998]
[1762630780844,0.4735,101980.0,101970.0,0.48268006]
[1762630782238,0.1127,101980.0,101970.0,0.48268006]
[1762630784339,0.03177,101980.0,101970.0,0.48268006]
[1762630784542,0.08864,101980.0,101970.0,0.48268006]
[1762630784949,0.08864,101980.0,101970.0,0.33438006]
[1762630786751,0.14333,101980.0,101970.0,0.33438006]
[1762630788056,0.14333,101980.0,101970.0,0.88378006]
[1762630788252,0.03177,101980.0,101970.0,0.88378006]
[1762630789155,0.08864,101980.0,101970.0,0.88378006]
[1762630789643,0.03177,101980.0,101970.0,1.36272014]
[1762630789845,0.002,101980.0,101970.0,1.67106606]
[1762630790049,0.002,101980.0,101970.0,1.55292598]
[1762630790854,0.002,101980.0,101970.0,1.54266463]
[1762630791054,0.001,101980.0,101970.0,1.54266463]
[1762630791450,0.49725,101990.0,101970.0,1.64076453]
[1762630791649,0.49725,101990.0,101980.0,0.33437036]
[1762630792948,0.49725,101990.0,101980.0,0.45251044]
[1762630793156,0.49825,101990.0,101980.0,0.45251044]
[1762630793855,0.49825,101990.0,101980.0,0.33437036]
[1762630794057,0.13745,101990.0,101980.0,0.45251044]
[1762630794258,0.13745,101990.0,101980.0,0.33437036]
[1762630794449,0.13845,101990.0,101980.0,0.33437036]
[1762630796962,0.13845,101990.0,101980.0,0.48267036]
[1762630799063,0.13845,101990.0,101980.0,0.2463902]
[1762630799268,0.13845,101990.0,101980.0,0.48267036]
[1762630800954,0.002,101990.0,101980.0,0.60081044]
[1762630801160,0.002,101990.0,101980.0,1.27734005]
[1762630801353,0.002,101990.0,101980.0,1.02330186]
[1762630801557,0.002,101990.0,101980.0,0.97045028]
[1762630801863,0.03343,102000.0,101990.0,0.0980806]
[1762630802164,0.03343,102000.0,101990.0,0.75685023]
[1762630802366,0.03343,102000.0,101990.0,0.99313039]
[1762630803266,0.14923,102000.0,101990.0,0.99313039]
[1762630803768,0.03343,102000.0,101990.0,0.99313039]
[1762630804358,0.09062,102000.0,101990.0,0.99413039]
[1762630804769,0.09062,102000.0,101990.0,0.74901039]
[1762630804964,0.09062,102000.0,101990.0,0.99413039]
[1762630805866,0.09062,102000.0,101990.0,1.14243039]
[1762630806567,0.09062,102000.0,101990.0,1.18232313]
[1762630807165,0.09062,102000.0,101990.0,0.94120313]
[1762630807367,0.09062,102000.0,101990.0,1.18632313]
[1762630808169,0.09062,102000.0,101990.0,0.94120313]
[1762630808361,0.09062,102000.0,101990.0,1.18632313]
[1762630809270,0.09062,102000.0,101990.0,1.02119275]
[1762630809473,0.09062,102000.0,101990.0,1.26631275]
[1762630809672,0.14923,102000.0,101990.0,1.26631275]
[1762630810259,0.14923,102000.0,101990.0,1.02119275]
[1762630810466,0.14923,102000.0,101990.0,1.26631275]
[1762630810668,0.14923,102000.0,101990.0,1.02119275]
[1762630810874,0.14923,102000.0,101990.0,1.26631275]
[1762630811672,0.08208,102010.0,101990.0,1.59316995]
[1762630811870,0.08208,102010.0,102000.0,0.74761534]
[1762630812060,0.08208,102010.0,102000.0,1.44519534]
[1762630813277,0.02489,102010.0,102000.0,1.44519534]
[1762630813573,0.02489,102010.0,102000.0,1.69027534]
[1762630813780,0.02489,102010.0,102000.0,1.69427534]
[1762630814277,0.02489,102010.0,102000.0,1.45319534]
[1762630814576,0.02489,102010.0,102000.0,1.69827534]
[1762630816478,0.16222,102020.0,102000.0,1.79634644]
[1762630816774,0.16222,102020.0,102010.0,0.66476567]
[1762630817778,0.16222,102020.0,102010.0,0.66776567]
[1762630819082,0.16222,102020.0,102010.0,0.67076567]
[1762630819287,0.16222,102020.0,102010.0,0.81906567]
[1762630824190,0.16239,102030.0,102010.0,1.12705762]
[1762630824390,0.03901,102020.0,102010.0,0.9110068]
[1762630824591,0.03901,102020.0,102010.0,1.02899622]
[1762630825086,0.03901,102020.0,102010.0,0.78391622]
[1762630825287,0.03901,102020.0,102010.0,1.02599622]
[1762630825586,0.03901,102020.0,102010.0,1.02899622]
[1762630826294,0.03901,102020.0,102010.0,0.78391622]
[1762630826498,0.03901,102020.0,102010.0,1.02899622]
[1762630826891,0.17229,102030.0,102010.0,1.12705762]
[1762630827097,0.17229,102030.0,102020.0,0.62960662]
[1762630827392,0.09856,102030.0,102020.0,0.74759604]
[1762630829599,0.17229,102030.0,102020.0,0.74759604]
[1762630829787,0.17885,102040.0,102020.0,0.74959604]
[1762630829986,0.17885,102040.0,102030.0,0.33402104]
[1762630830202,0.17885,102040.0,102030.0,0.48232104]
[1762630831194,0.17885,102040.0,102030.0,1.03144104]
[1762630832086,0.17885,102040.0,102030.0,0.91345162]
[1762630834599,0.17885,102040.0,102030.0,0.96621702]
[1762630835000,0.17885,102040.0,102030.0,0.8482276]
[1762630835300,0.53965,102040.0,102030.0,0.27271797]
[1762630835595,0.53965,102040.0,102030.0,0.82179826]
[1762630837186,0.53965,102040.0,102030.0,0.27271826]
[1762630837390,0.53965,102040.0,102030.0,0.90093583]
[1762630837793,0.53965,102040.0,102030.0,1.01892525]
[1762630840301,0.53965,102040.0,102030.0,1.04531459]
[1762630853900,0.17885,102040.0,102030.0,1.04531459]
[1762630857703,0.17885,102040.0,102030.0,0.92732517]
[1762630858002,0.17885,102040.0,102030.0,1.04531459]
[1762630862110,0.53965,102040.0,102030.0,1.04531459]
[1762630866413,0.17885,102040.0,102030.0,1.04526122]
[1762630871215,0.17885,102040.0,102030.0,1.16319727]
[1762630871417,0.17885,102040.0,102030.0,1.47123187]
[1762630871616,0.17885,102040.0,102030.0,1.54184148]
[1762630873324,0.39981,102050.0,102030.0,1.63988368]
[1762630873520,0.39981,102050.0,102030.0,1.30596938]
[1762630873521,0.19264,102040.0,102030.0,1.30596938]
[1762630873819,0.19264,102040.0,102030.0,1.54184148]
[1762630875214,0.11777,102040.0,102030.0,1.54184148]
[1762630875714,0.19264,102040.0,102030.0,1.54184148]
[1762630876822,0.19264,102040.0,102030.0,1.55192733]
[1762630878224,0.19264,102040.0,102030.0,1.40362733]
[1762630878927,0.19264,102040.0,102030.0,1.39354148]
[1762630879522,0.19264,102040.0,102030.0,1.03274148]
[1762630881026,0.19264,102040.0,102030.0,0.36572543]
[1762630881221,0.19264,102040.0,102030.0,0.91472543]
[1762630881425,0.55344,102040.0,102030.0,0.91472543]
[1762630881627,0.55344,102040.0,102030.0,0.36572543]
[1762630881836,0.55344,102040.0,102030.0,0.84411582]
[1762630882324,0.67137605,102040.0,102030.0,0.84411582]
[1762630882519,0.55344,102040.0,102030.0,0.84411582]
[1762630883132,0.67137605,102040.0,102030.0,0.84411582]
[1762630883630,0.67137605,102040.0,102030.0,0.72617977]
[1762630883828,0.67137605,102040.0,102030.0,0.84411582]
[1762630886226,0.7893121,102040.0,102030.0,0.0980422]
[1762630886531,0.67137605,102040.0,102030.0,0.10788172]
[1762630887533,0.55344,102040.0,102030.0,0.35685777]
[1762630887727,0.55344,102040.0,102030.0,0.23892172]
[1762630888031,0.55344,102040.0,102030.0,0.35685777]
[1762630894143,0.55344,102040.0,102030.0,0.24192172]
[1762630894335,0.55344,102040.0,102030.0,0.35985777]
[1762630894529,0.55344,102040.0,102030.0,0.36285777]
[1762630895235,0.55344,102040.0,102030.0,0.35985777]
[1762630895534,0.55344,102040.0,102030.0,0.36185777]
[1762630896635,0.55344,102040.0,102030.0,0.24392172]
[1762630896934,0.55344,102040.0,102030.0,0.36185777]
[1762630897133,0.55344,102040.0,102030.0,0.36085777]
[1762630898242,0.6514729,102040.0,102030.0,0.36085777]
[1762630898536,0.76940895,102040.0,102030.0,0.22981777]
[1762630899241,0.76940895,102040.0,102030.0,0.77889777]
[1762630899643,0.76940895,102040.0,102030.0,0.77689777]
[1762630899838,0.67137605,102040.0,102030.0,0.77889777]
[1762630900033,0.55344,102040.0,102030.0,0.77889777]
[1762630900240,0.55344,102040.0,102030.0,0.90793777]
[1762630900538,0.55344,102040.0,102030.0,0.90993777]
[1762630901140,0.55344,102040.0,102030.0,0.90793777]
[1762630901441,0.55344,102040.0,102030.0,0.90993777]
[1762630902330,0.6514729,102040.0,102030.0,0.90993777]
[1762630902735,0.55344,102040.0,102030.0,0.90993777]
[1762630902931,0.55344,102040.0,102030.0,0.79200172]
[1762630903130,0.55344,102040.0,102030.0,0.90993777]
[1762630904044,0.55344,102040.0,102030.0,0.36085777]
[1762630909041,0.55344,102040.0,102030.0,0.24292172]
[1762630909248,0.55344,102040.0,102030.0,0.39608594]
[1762630917245,0.55344,102040.0,102030.0,0.38624642]
[1762630918348,0.55344,102040.0,102030.0,0.43910083]
[1762630919149,0.55344,102040.0,102030.0,0.55703688]
[1762630919551,0.55344,102040.0,102030.0,0.52180871]
[1762630921253,0.19264,102040.0,102030.0,0.51780871]
[1762630921455,0.19264,102040.0,102030.0,0.52580871]
[1762630922746,0.19264,102040.0,102030.0,0.60347206]
[1762630923843,0.19264,102040.0,102030.0,0.48553601]
[1762630924044,0.19264,102040.0,102030.0,0.36759996]
[1762630924351,0.55344,102040.0,102030.0,1.06983588]
[1762630925144,0.55344,102040.0,102030.0,1.06783588]
[1762630925854,0.55344,102040.0,102030.0,1.06383588]
[1762630926150,0.55344,102040.0,102030.0,1.06583588]
[1762630926656,0.55344,102040.0,102030.0,0.94789983]
[1762630926858,0.55344,102040.0,102030.0,1.06583588]
[1762630927347,0.55344,102040.0,102030.0,0.94789983]
[1762630927551,0.55344,102040.0,102030.0,1.06583588]
[1762630928449,0.55344,102040.0,102030.0,0.39885983]
[1762630928656,0.55344,102040.0,102030.0,0.89504542]
[1762630929956,0.55344,102040.0,102030.0,0.89304542]
[1762630930157,0.55344,102040.0,102030.0,0.89404542]
[1762630931057,0.55344,102040.0,102030.0,0.89504542]
[1762630931559,0.55344,102040.0,102030.0,0.13730207]
[1762630931758,0.55344,102040.0,102030.0,0.13530207]
[1762630931960,0.55344,102040.0,102030.0,0.1000422]
[1762630933550,0.55344,102040.0,102030.0,0.0990422]
[1762630933756,0.55344,102040.0,102030.0,0.1000422]
[1762630935153,0.6514729,102040.0,102030.0,0.1000422]
[1762630935665,0.55344,102040.0,102030.0,0.1000422]
[1762630935956,0.54151,102040.0,102030.0,0.31365651]
[1762630936158,0.54151,102040.0,102030.0,0.34891638]
[1762630936462,0.54151,102040.0,102030.0,0.89695638]
[1762630936662,0.54151,102040.0,102030.0,0.77900207]
[1762630936870,0.54151,102040.0,102030.0,0.77800207]
[1762630937653,0.54151,102040.0,102030.0,0.73217207]
[1762630937854,0.54151,102040.0,102030.0,0.68434207]
[1762630938160,0.6395429,102040.0,102030.0,0.03725987]
[1762630938362,0.75749721,102040.0,102030.0,0.1000425]
[1762630939664,0.65946431,102040.0,102030.0,0.0990425]
[1762630939866,0.65946431,102040.0,102030.0,0.0980425]
[1762630940065,0.65946431,102040.0,102030.0,0.0990425]
[1762630940365,0.54151,102040.0,102030.0,0.1667625]
[1762630940766,0.54151,102040.0,102030.0,0.1657625]
[1762630946369,0.54151,102040.0,102030.0,0.19220199]
[1762630946560,0.6395429,102040.0,102030.0,0.19220199]
[1762630946759,0.6395429,102040.0,102030.0,0.12448199]
[1762630947669,0.6395429,102040.0,102030.0,0.12548199]
[1762630948660,0.6395429,102040.0,102030.0,0.12648199]
[1762630951872,0.54151,102040.0,102030.0,0.15465199]
[1762630952273,0.6395429,102040.0,102030.0,0.12648199]
[1762630953373,0.54151,102040.0,102030.0,0.12648199]
[1762630954373,0.6395429,102040.0,102030.0,0.12648199]
[1762630954673,0.6395429,102040.0,102030.0,0.15465199]
[1762630954868,0.54151,102040.0,102030.0,0.18282199]
[1762630957781,0.6395429,102040.0,102030.0,0.18282199]
[1762630957973,0.54151,102040.0,102030.0,0.18282199]
[1762630958173,0.54151,102040.0,102030.0,0.21808186]
[1762630958984,0.90231,102040.0,102030.0,0.21808186]
[1762630959173,0.18071,102040.0,102030.0,0.21808186]
[1762630959375,0.90231,102040.0,102030.0,0.21808186]
[1762630959871,1.0003429,102040.0,102030.0,0.18991186]
[1762630960073,1.0003429,102040.0,102030.0,0.16174186]
[1762630965786,0.2414325,102030.0,102020.0,0.09819912]
[1762630966084,0.2414507,102020.0,102000.0,0.05285441]
[1762630966276,0.2414507,102020.0,101990.0,0.7271582]
[1762630966277,0.11015,102000.0,101990.0,0.92740261]
[1762630966585,0.50419,102000.0,101990.0,1.04535692]
[1762630967672,0.50419,102000.0,101990.0,1.04735692]
[1762630969190,0.50419,102000.0,101990.0,0.8443482]
[1762630969789,0.50419,102000.0,101990.0,0.8785482]
[1762630970086,0.47095,102000.0,101990.0,0.8785482]
[1762630970682,0.41439,102000.0,101990.0,0.99650251]
[1762630971381,0.47095,102000.0,101990.0,0.99650251]
[1762630972192,0.11015,102000.0,101990.0,0.99650251]
[1762630973201,0.47095,102000.0,101990.0,0.99650251]
[1762630973901,0.11015,102000.0,101990.0,0.99650251]
[1762630974605,0.47095,102000.0,101990.0,0.99650251]
[1762630979711,0.47095,102000.0,101990.0,0.99750251]
[1762630980208,0.47095,102000.0,101990.0,0.99550251]
[1762630980408,0.47095,102000.0,101990.0,0.99750251]
[1762630980602,0.11015,102000.0,101990.0,0.99650251]
[1762630981003,0.11015,102000.0,101990.0,0.99550251]
[1762630981706,0.11015,102000.0,101990.0,1.14380251]
[1762630982504,0.49271702,102010.0,102000.0,0.2467012]
[1762630984307,0.49271702,102010.0,102000.0,0.2487012]
[1762630985009,0.59077862,102010.0,102000.0,0.2155712]
[1762630986007,0.49271702,102010.0,102000.0,0.2155712]
[1762630987001,0.59077852,102010.0,102000.0,0.2135712]
[1762630987507,0.59077852,102010.0,102000.0,0.2125712]
[1762630987712,0.49271702,102010.0,102000.0,0.2125712]
[1762630990412,0.49271702,102010.0,102000.0,0.33060344]
[1762630991010,0.85351702,102010.0,102000.0,0.33060344]
[1762630991197,1.06961076,102010.0,102000.0,0.33060344]
[1762630991401,0.97154926,102010.0,102000.0,0.33060344]
[1762630995812,0.97154926,102010.0,102000.0,0.36590309]
[1762630998223,1.06961096,102010.0,102000.0,0.36590309]
[1762631000310,0.85351702,102010.0,102000.0,0.36590309]
[1762631000523,0.97154926,102010.0,102000.0,0.36590309]
[1762631000720,0.85351702,102010.0,102000.0,0.36590309]
[1762631001014,0.97154926,102010.0,102000.0,0.36590309]
[1762631002314,1.06961096,102010.0,102000.0,0.36590309]
[1762631006621,0.97154926,102010.0,102000.0,0.36590309]
[1762631010121,1.06961096,102010.0,102000.0,0.36590309]
[1762631011915,0.97154926,102010.0,102000.0,0.36590309]
[1762631013120,0.85351702,102010.0,102000.0,0.36590309]
[1762631013618,0.97154926,102010.0,102000.0,0.36590309]
[1762631014421,0.85351702,102010.0,102000.0,0.36590309]
[1762631015418,0.13191702,102010.0,102000.0,0.36590309]
[1762631015624,0.49271702,102010.0,102000.0,0.36590309]
[1762631017116,0.59077872,102010.0,102000.0,0.36590309]
[1762631017317,0.70881096,102010.0,102000.0,0.36590309]
[1762631020022,0.34801096,102010.0,102000.0,0.36590309]
[1762631020216,0.70881096,102010.0,102000.0,0.36590309]
[1762631022826,0.34801096,102010.0,102000.0,0.36590309]
[1762631023127,0.70881096,102010.0,102000.0,0.36590309]
[1762631024131,0.61074926,102010.0,102000.0,0.36590309]
[1762631025225,0.49271702,102010.0,102000.0,0.36590309]
[1762631026033,0.49271702,102010.0,102000.0,0.39375309]
[1762631026225,0.47363702,102010.0,102000.0,0.51178533]
[1762631026432,0.47363702,102010.0,102000.0,0.52934009]
[1762631027433,0.00014702,102010.0,102000.0,0.52934009]
[1762631027626,0.00014702,102010.0,102000.0,0.54709529]
[1762631028537,0.00014702,102010.0,102000.0,1.06119529]
[1762631029024,0.00014702,102010.0,102000.0,0.70039529]
[1762631029334,0.00014702,102010.0,102000.0,0.70139529]
[1762631029728,0.00014702,102010.0,102000.0,1.06219529]
[1762631030637,0.04583702,102010.0,102000.0,1.06219529]
[1762631033733,0.00014702,102010.0,102000.0,1.06219529]
[1762631037339,0.00014702,102010.0,102000.0,0.99158568]
[1762631038242,0.00014702,102010.0,102000.0,1.04440427]
[1762631039441,0.00014702,102010.0,102000.0,0.99158568]
[1762631044240,0.00014702,102010.0,102000.0,1.54074568]
[1762631045534,0.00014702,102010.0,102000.0,1.61135529]
[1762631045734,0.00014702,102010.0,102000.0,1.54074568]